lending/lending_fUSD_20251021
["ID","MTS","AMOUNT","RATE_DAILY","PERIOD"]
[391969638,1761035327211,189.78,0.00011031,2]
[391969655,1761035431602,-1576.1739398,0.00013974,2]
[391969656,1761035431614,-250.0,0.00013974,2]
[391969657,1761035431707,-414.9125,0.00013974,2]
[391969658,1761035431720,-345.33872251,0.00013974,2]
[391969659,1761035431733,-195.0,0.00013976,2]
[391969660,1761035431743,-250.0,0.00013978,2]
[391969661,1761035431753,-21.5838779,0.00013982,2]
[391969662,1761035431773,-420.26169723,0.00013982,2]
[391969663,1761035431821,-447.5507135,0.00013982,2]
[391969664,1761035431830,-195.0,0.00014036,2]
[391969665,1761035431840,-166.66,0.00014091,2]
[391969666,1761035431852,-742.54388015,0.0001421,7]
[391969667,1761035431862,-309.8633,0.00014258,2]
[391969668,1761035431872,-166.66,0.00014288,2]
[391969669,1761035431882,-438.97404087,0.0001439,2]
[391969671,1761035431891,-1116.05,0.00014394,2]
[391969672,1761035431900,-166.66,0.00014484,2]
[391969674,1761035431911,-1200.0,0.00014529,2]
[391969676,1761035431920,-800.28866222,0.0001453,2]
[391969678,1761035431930,-666.0,0.00014598,3]
[391969679,1761035431939,-166.66,0.00014681,2]
[391969681,1761035431948,-156.03,0.00014722,2]
[391969683,1761035431958,-200.0,0.0001478,2]
[391969684,1761035431967,-300.0,0.00014798,2]
[391969686,1761035431976,-1200.0,0.00014799,2]
[391969688,1761035431986,-2172.41094402,0.000148,2]
[391969690,1761035431995,-2172.41094395,0.00014811,2]
[391969691,1761035432006,-2172.41094395,0.00014822,2]
[391969693,1761035432016,-2172.41094395,0.00014833,2]
[391969695,1761035432029,-2172.41094395,0.00014844,2]
[391969696,1761035432039,-2172.41094395,0.00014856,2]
[391969698,1761035432048,-150.0,0.00014856,2]
[391969700,1761035432057,-2172.41094395,0.00014867,2]
[391969702,1761035432069,-2172.41094395,0.00014878,2]
[391969703,1761035432078,-200.0,0.0001488,2]
[391969705,1761035432088,-2172.41094395,0.00014889,2]
[391969706,1761035432099,-151.0,0.00014891,2]
[391969708,1761035432108,-151.0,0.00014891,2]
[391969709,1761035432117,-151.0,0.00014891,2]
[391969711,1761035432127,-151.0,0.00014891,2]
[391969713,1761035432136,-151.0,0.00014891,2]
[391969714,1761035432147,-151.0,0.00014891,2]
[391969716,1761035432156,-151.0,0.00014891,2]
[391969718,1761035432166,-151.0,0.00014891,2]
[391969719,1761035432176,-151.0,0.00014891,2]
[391969720,1761035432185,-151.0,0.00014891,2]
[391969721,1761035432195,-151.0,0.00014891,2]
[391969722,1761035432204,-151.0,0.00014891,2]
[391969723,1761035432217,-151.0,0.00014891,2]
[391969724,1761035432227,-151.0,0.00014891,2]
[391969725,1761035432237,-182.74839534,0.00014891,2]
[391969726,1761035432247,-271.60123828,0.00014899,2]
[391969727,1761035432257,-500.0,0.00014899,2]
[391969728,1761035432267,-500.0,0.00014899,2]
[391969729,1761035432277,-500.0,0.00014899,2]
[391969730,1761035432286,-500.0,0.00014899,2]
[391969731,1761035432296,-500.0,0.00014899,2]
[391969732,1761035432306,-500.0,0.00014899,2]
[391969733,1761035432316,-500.0,0.00014899,2]
[391969734,1761035432326,-500.0,0.00014899,2]
[391969735,1761035432336,-500.0,0.00014899,2]
[391969736,1761035432346,-500.0,0.00014899,2]
[391969737,1761035432356,-500.0,0.00014899,2]
[391969738,1761035432369,-500.0,0.00014899,2]
[391969739,1761035432379,-500.0,0.00014899,2]
[391969740,1761035432389,-500.0,0.00014899,2]
[391969741,1761035432399,-500.0,0.00014899,2]
[391969742,1761035432410,-500.0,0.00014899,2]
[391969743,1761035432420,-500.0,0.00014899,2]
[391969744,1761035432430,-500.0,0.00014899,2]
[391969745,1761035432440,-500.0,0.00014899,2]
[391969746,1761035432450,-500.0,0.00014899,2]
[391969747,1761035432460,-500.0,0.00014899,2]
[391969748,1761035432470,-554.35568089,0.00014899,2]
[391969749,1761035432480,-500.0,0.00014899,2]
[391969750,1761035432490,-500.0,0.00014899,2]
[391969751,1761035432501,-2172.41094395,0.000149,2]
[391969752,1761035432512,-48914.20216834,0.000149,2]
[391969753,1761035432525,-674.94630055,0.000149,2]
[391969754,1761035432537,-2475.883476,0.000149,2]
[391969755,1761035432549,-2012.39382607,0.000149,2]
[391969760,1761035437681,-2858.98439,0.0001485,2]
[391969761,1761035437690,-2387.0156098,0.0001486,2]
[391969762,1761035437703,-471.9687702,0.0001486,2]
[391969763,1761035437714,-74634.36872795,0.000149,2]
[391969764,1761035437724,-2531.41421886,0.000149,2]
[391969765,1761035437869,-823.56771888,0.000149,2]
[391969767,1761035437880,-528.1100212,0.000149,2]
[391969769,1761035437889,-676.70148197,0.000149,2]
[391969770,1761035437899,-207.74645787,0.000149,2]
[391969772,1761035437908,-3585.0,0.00014959,2]
[391969774,1761035437918,-9348.0,0.00014959,2]
[391969775,1761035437927,-500.0,0.00014973,2]
[391969776,1761035437937,-524.55788713,0.00014973,2]
[391969777,1761035437947,-500.0,0.00014973,2]
[391969778,1761035437956,-292.72610234,0.00014973,2]
[391969779,1761035437966,-500.0,0.00014973,2]
[391969780,1761035437975,-500.0,0.00014973,2]
[391969781,1761035437984,-502.7239296,0.00014973,2]
[391969782,1761035437993,-798.55,0.00014973,2]
[391969783,1761035438003,-201.44222301,0.00014977,2]
[391969784,1761035438012,-150.0,0.00014977,2]
[391969785,1761035438022,-500.0,0.00014977,2]
[391969786,1761035438032,-150.0,0.00014977,2]
[391969787,1761035438041,-500.0,0.00014977,2]
[391969788,1761035438056,-150.0,0.00014977,2]
[391969789,1761035438066,-150.0,0.00014977,2]
[391969790,1761035438076,-150.0,0.00014977,2]
[391969791,1761035438086,-150.0,0.00014977,2]
[391969792,1761035438097,-500.0,0.00014977,2]
[391969793,1761035438107,-150.0,0.00014977,2]
[391969794,1761035438117,-150.0,0.00014977,2]
[391969795,1761035438129,-861.0,0.00014986,2]
[391969796,1761035438139,-213.23625827,0.0001499,2]
[391969797,1761035438149,-150.0,0.00014991,2]
[391969798,1761035438158,-150.0,0.00014991,2]
[391969799,1761035438168,-6622.6062849,0.00014998,2]
[391969800,1761035438177,-17590.6169343,0.00014998,2]
[391969801,1761035438187,-3079.0083118,0.00014999,2]
[391969802,1761035438197,-8944.7748923,0.00014999,2]
[391969803,1761035438206,-193.43912443,0.00014999,2]
[391969804,1761035438215,-500.0,0.00014999,2]
[391969805,1761035438224,-263.51681791,0.00014999,2]
[391969806,1761035438234,-630.39486841,0.00014999,2]
[391969807,1761035438243,-262573.93465659,0.00015,2]
[391969808,1761035438259,-3413.99463774,0.00015,2]
[391969809,1761035438271,-630.59777849,0.00015,2]
[391969819,1761035439632,-3585.2231643,0.00015,2]
[391969828,1761035442561,-168.3080271,0.000149,2]
[391969830,1761035442571,-396.92903182,0.00015,2]
[391969838,1761035442618,-1075.55186781,0.000149,2]
[391969850,1761035442894,-249.76968299,0.000149,2]
[391969852,1761035442904,-98978.81319477,0.00015,2]
[391969885,1761035445792,-5570.45453968,0.00015,2]
[391970785,1761035469890,-157.52729147,0.00014899,2]
[391970786,1761035469923,-500.0,0.00014899,2]
[391970787,1761035469947,-500.0,0.00014899,2]
[391970788,1761035469975,-500.0,0.00014899,2]
[391970789,1761035469999,-400.95072376,0.00014899,2]
[391970790,1761035470029,-500.0,0.00014899,2]
[391970791,1761035491503,-500.0,0.00014899,2]
[391970792,1761035491534,-500.0,0.00014899,2]
[391970793,1761035491556,-500.0,0.00014899,2]
[391970794,1761035491584,-500.0,0.00014899,2]
[391970795,1761035491611,-500.0,0.00014899,2]
[391970796,1761035491636,-451.66434821,0.00014899,2]
[391970797,1761035491661,-500.0,0.00014899,2]
[391970798,1761035491687,-500.0,0.00014899,2]
[391970799,1761035491711,-500.0,0.00014899,2]
[391970800,1761035491736,-500.0,0.00014899,2]
[391970801,1761035491758,-500.0,0.00014899,2]
[391970802,1761035491781,-500.0,0.00014899,2]
[391970803,1761035491809,-180.23404476,0.00014899,2]
[391970804,1761035491832,-162.76170028,0.000149,2]
[391970805,1761035497240,-726.335,0.000147,2]
[391970806,1761035502755,-195.0,0.00014949,2]
[391970807,1761035507510,-500.0,0.00014973,2]
[391970808,1761035533045,300.0,0.00013874,2]
[391970809,1761035537882,-500.0,0.00014899,2]
[391970810,1761035537905,-500.0,0.00014899,2]
[391970811,1761035537928,-500.0,0.00014899,2]
[391970812,1761035537953,-500.0,0.00014899,2]
[391970813,1761035537976,-200.47105118,0.00014899,2]
[391970814,1761035537999,-549.04514592,0.000149,2]
[391970815,1761035543164,-195.0,0.00014942,2]
[391970816,1761035549743,-451.13432132,0.000149,2]
[391970817,1761035555142,-207.74645785,0.000149,2]
[391970818,1761035566759,-2117.363822,0.00014983,2]
[391970819,1761035581822,-469.0,0.00014998,2]
[391970820,1761035581843,-1002.71640934,0.00014999,2]
[391970821,1761035581866,-500.0,0.00014999,2]
[391970822,1761035581888,-500.0,0.00014999,2]
[391970823,1761035581910,-500.0,0.00014999,2]
[391970824,1761035581932,-420.64910802,0.00014999,2]
[391970825,1761035581954,-16607.63448264,0.00015,2]
[391970826,1761035643416,50000.0,0.00034467,36]
[391970827,1761035647000,50000.0,0.00034467,37]
[391970828,1761035651051,50000.0,0.00034467,38]
[391970830,1761036245142,-195.0,0.00014865,2]
[391970831,1761036245162,-274.50811417,0.00014873,2]
[391970832,1761036245181,-200.0,0.0001488,2]
[391970833,1761036245204,-9035.8861,0.000149,2]
[391970834,1761036245223,-151.97614559,0.000149,2]
[391970835,1761036245242,-366.03009728,0.000149,2]
[391970836,1761036245261,-300.75621422,0.000149,2]
[391970837,1761036245280,-500.0,0.00014973,2]
[391970838,1761036245298,-500.0,0.00014973,2]
[391970839,1761036245317,-500.0,0.00014973,2]
[391970840,1761036245336,-500.0,0.00014973,2]
[391970841,1761036245355,-501.3626745,0.00014973,2]
[391970842,1761036245373,-150.0,0.00014995,2]
[391970843,1761036245392,-6324.7567625,0.00014996,2]
[391970844,1761036245410,-12934.1768637,0.00014996,2]
[391970845,1761036245429,-1200.0,0.00014998,2]
[391970846,1761036245450,-300.0,0.00014998,2]
[391970847,1761036245469,-184.46177254,0.00014999,2]
[391970848,1761036245488,-500.0,0.00014999,2]
[391970849,1761036245507,-463.72982828,0.00014999,2]
[391970850,1761036245529,-213.40545645,0.00014999,2]
[391970851,1761036245548,-1793.0,0.00015,2]
[391970852,1761036245569,-141910.94997077,0.00015,2]
[391970853,1761036287577,-2768.66249,0.0001485,2]
[391970854,1761036287598,-195.0,0.00014869,2]
[391970855,1761036287617,-207.74645785,0.000149,2]
[391970856,1761036287638,-500.0,0.00014998,2]
[391970857,1761036287664,-733328.59105215,0.00015,2]
[391970858,1761036326604,-800.28866224,0.00014618,2]
[391970859,1761036326624,-151.97614559,0.000149,2]
[391970860,1761036326645,-244.02006486,0.000149,2]
[391970861,1761036326669,-471.18415525,0.000149,2]
[391970862,1761036326689,-500.0,0.00014973,2]
[391970863,1761036326709,-1009.02525228,0.00014999,2]
[391970864,1761036326731,-247.13510877,0.00014999,2]
[391970865,1761036326754,-1200.0,0.00014999,2]
[391970866,1761036326774,-300.0,0.00014999,2]
[391970867,1761036326796,-300.0,0.00014999,2]
[391970868,1761036326817,-150.0,0.00014999,2]
[391970869,1761036326839,-300.0,0.00014999,2]
[391970870,1761036326862,-676049.31165929,0.00015,2]
[391970871,1761036326882,-2025.3068334,0.00015,2]
[391970872,1761036326911,-59251.75211832,0.00015,2]
[391970873,1761036363512,812.95,7.81e-05,2]
[391970874,1761036363711,250.21733848,8.221e-05,2]
[391970875,1761036363734,562.73266152,8.221e-05,2]
[391970876,1761036363919,812.95,8.632e-05,2]
[391970877,1761036364259,812.95,9.043e-05,2]
[391970878,1761036364321,812.95,9.454e-05,2]
[391970879,1761036364537,812.95,9.865e-05,2]
[391970880,1761036364734,812.95,0.00010276,2]
[391970881,1761036364930,79.46047022,0.00010687,2]
[391970882,1761036364955,733.48952978,0.00010687,2]
[391970883,1761036365123,812.95,0.00011098,2]
[391970884,1761036365330,812.95,0.00011509,2]
[391970885,1761036365569,812.95,0.0001192,2]
[391970886,1761036365976,812.95,0.00012331,2]
[391970887,1761036366170,721.65360196,0.00012742,2]
[391970888,1761036366195,91.29639804,0.00012742,2]
[391970889,1761036366383,812.95,0.00013153,2]
[391970890,1761036366591,812.95,0.00013564,2]
[391970891,1761036369378,-349.91888388,0.00013975,2]
[391970892,1761036429936,-463.03111612,0.00013975,2]
[391970893,1761036429959,-44000.0,0.00014,2]
[391970894,1761036429981,-812.95,0.00014386,2]
[391970895,1761036430001,-500.0,0.00014765,2]
[391970896,1761036430022,-812.95,0.00014797,2]
[391970897,1761036430042,-200.5041428,0.000149,2]
[391970898,1761036430065,-250.0,0.00014921,2]
[391970899,1761036430086,-986.95299408,0.00014921,2]
[391970900,1761036430108,-16287.0079256,0.00014999,2]
[391970901,1761036430131,-500.0,0.00014999,2]
[391970902,1761036430152,-427.98325287,0.00014999,2]
[391970903,1761036430173,-1160.2263599,0.00014999,2]
[391970904,1761036430195,-500.0,0.00014999,2]
[391970905,1761036430216,-92098.39420863,0.00015,2]
[391970906,1761036496177,-331.0,0.00014899,2]
[391970907,1761036496199,-300.0,0.00014899,2]
[391970908,1761036496219,-162.68004324,0.000149,2]
[391970909,1761036496240,-12082.41116454,0.000149,2]
[391970910,1761036496261,-200.5041428,0.000149,2]
[391970911,1761036496282,-193.3009838,0.000149,2]
[391970912,1761036496303,-500.0,0.00014973,2]
[391970913,1761036496324,-407230.10366562,0.00015,2]
[391970914,1761036503489,927.34834955,0.00034449,30]
[391970938,1761036631729,-191.33842346,0.000148,2]
[391970940,1761036631738,-191.33842345,0.0001485,2]
[391970941,1761036631747,-1200.0,0.00014899,2]
[391970942,1761036631757,-300.0,0.00014899,2]
[391970943,1761036631766,-300.0,0.00014899,2]
[391970944,1761036631775,-195.0,0.000149,2]
[391970945,1761036631784,-151.97614559,0.000149,2]
[391970946,1761036631797,-30164.32318735,0.000149,2]
[391970947,1761036631806,-200.5041428,0.000149,2]
[391970948,1761036631815,-191.33842345,0.000149,2]
[391970949,1761036631825,-500.0,0.00014973,2]
[391970950,1761036631834,-500.0,0.00014973,2]
[391970951,1761036631843,-502.80166226,0.00014973,2]
[391970952,1761036631852,-500.0,0.00014973,2]
[391970953,1761036631861,-500.0,0.00014973,2]
[391970954,1761036631871,-500.0,0.00014973,2]
[391970955,1761036631880,-500.0,0.00014973,2]
[391970956,1761036631889,-500.0,0.00014973,2]
[391970957,1761036631898,-500.0,0.00014999,2]
[391970958,1761036631907,-500.0,0.00014999,2]
[391970959,1761036631916,-500.0,0.00014999,2]
[391970960,1761036631925,-500.0,0.00014999,2]
[391970961,1761036631935,-500.0,0.00014999,2]
[391970962,1761036631945,-500.0,0.00014999,2]
[391970963,1761036631954,-500.0,0.00014999,2]
[391970964,1761036631963,-500.0,0.00014999,2]
[391970965,1761036631972,-232.72,0.00014999,2]
[391970966,1761036631981,-1435.0,0.00015,2]
[391970967,1761036631990,-4911.70469962,0.00015,2]
[391970968,1761036632001,-1903.39076742,0.00015,2]
[391970969,1761036632012,-302.0,0.00015,2]
[391970970,1761036632031,-422.66387832,0.00015,2]
[391970971,1761036632045,-309.642,0.00015,2]
[391970973,1761036632056,-653.44080953,0.00015,2]
[391970975,1761036632067,-105441.17899719,0.00015,2]
[391970977,1761036632077,-803.67,0.00015,2]
[391970979,1761036632088,-4318.0,0.00015,2]
[391970981,1761036632103,-634.02339,0.00015,2]
[391970994,1761036632208,-614.32220426,0.00015,2]
[391970996,1761036632219,-1058.6,0.00015,2]
[391971040,1761036637754,-2706.58564348,0.00015,2]
[391971041,1761036637765,-3441.97702186,0.00015,2]
[391971042,1761036637777,-629.00346275,0.00015,2]
[391971043,1761036637789,-980.89903604,0.00015,2]
[391971044,1761036637812,-471.48220225,0.00015,2]
[391971047,1761036637992,-1417.1362236,0.00015,2]
[391971048,1761036638005,-14303.92467329,0.00015,2]
[391971050,1761036638242,-935.78827084,0.00015,2]
[391971056,1761036639758,-2244.31236086,0.00015,2]
[391971057,1761036639770,-936.16296,0.00015,2]
[391971058,1761036639782,-2476.97451111,0.00015,2]
[391971059,1761036639793,-1387.3526648,0.00015,2]
[391971060,1761036639805,-332.34,0.00015,2]
[391971061,1761036639861,-5497.39518433,0.00015,2]
[391971062,1761036639917,-750.34978988,0.00015,2]
[391971063,1761036640337,-3150.0,0.00015,2]
[391971064,1761036640348,-2705.9,0.00015,2]
[391971065,1761036640367,-5628.56108746,0.00015,2]
[391971066,1761036640381,-3783.3846,0.00015,2]
[391971067,1761036640391,-509.66001,0.00015,2]
[391971068,1761036640402,-2775.00000054,0.00015,2]
[391971073,1761036643196,-149.04371879,0.0001485,2]
[391971074,1761036643209,-430.91534121,0.0001485,2]
[391971075,1761036643218,-193.30098379,0.000149,2]
[391971076,1761036643227,-62884.76335901,0.00015,2]
[391971077,1761036643336,-860.4182736,0.00015,2]
[391971078,1761036643360,-2097.29630213,0.00015,2]
[391971079,1761036643379,-10792.99999999,0.00015,2]
[391971085,1761036645527,-50000.0,0.00015,2]
[391971090,1761036645866,-1202.81999996,0.00015,2]
[391971091,1761036645967,-1631.19869081,0.00015,2]
[391971092,1761036646081,-3365.74593214,0.00015,2]
[391971093,1761036646217,-1465.81734332,0.00015,2]
[391971094,1761036646228,-1139.26066502,0.00015,2]
[391971095,1761036646545,-925.22179691,0.00015,2]
[391971097,1761036646631,-1234.58982188,0.00015,2]
[391971098,1761036646641,-4299.04100083,0.00015,2]
[391971099,1761036646657,-4416.39149073,0.00015,2]
[391971100,1761036728103,151.0,0.00034449,30]
[391971101,1761036728721,151.0,0.00034449,30]
[391971102,1761036729392,151.0,0.00034449,30]
[391971103,1761036730055,151.0,0.00034449,30]
[391971104,1761036730718,151.0,0.00034449,30]
[391971105,1761036731340,151.0,0.00034449,30]
[391971106,1761036731668,327.31221957,0.00034449,30]
[391971107,1761037028900,664.17212895,0.00034433,30]
[391971108,1761037034771,250.0,0.00034433,30]
[391971109,1761037035524,250.0,0.00034433,30]
[391971110,1761037037858,-2307.21874,0.0001485,2]
[391971111,1761037037881,-150.47905354,0.00014857,2]
[391971112,1761037037905,-195.0,0.00014864,2]
[391971113,1761037037929,-500.0,0.00014879,2]
[391971114,1761037037953,-500.0,0.0001488,2]
[391971115,1761037037976,-500.0,0.0001488,2]
[391971116,1761037037998,-200.0,0.0001488,2]
[391971117,1761037038023,-195.0,0.00014882,2]
[391971118,1761037038049,-300.0,0.00014899,2]
[391971119,1761037038071,-1200.0,0.00014899,2]
[391971120,1761037038093,-452.66573244,0.000149,2]
[391971121,1761037038117,-154.80317182,0.000149,2]
[391971122,1761037038143,-6670.18612938,0.000149,2]
[391971123,1761037038168,-1578.20899986,0.000149,2]
[391971124,1761037038192,-96.43817296,0.000149,2]
[391971125,1761037041009,169.58732515,0.00034433,30]
[391971127,1761037393701,1000.0,0.00028767,120]
[391971128,1761037393940,1000.0,0.00028794,120]
[391971129,1761037394197,1000.0,0.00028821,120]
[391971130,1761037394436,1000.0,0.00028849,120]
[391971131,1761037394669,521.20410349,0.00028876,120]
[391971132,1761037449840,-200.0,0.00014211,2]
[391971133,1761037454450,-195.0,0.00014243,2]
[391971134,1761037459352,-666.0,0.00014275,3]
[391971135,1761037480514,-195.0,0.0001458,2]
[391971136,1761037486099,-202.08027241,0.00014762,2]
[391971137,1761037761513,2000.0,0.00030137,120]
[391971138,1761037761931,2000.0,0.00030137,120]
[391971139,1761037762424,2000.0,0.00030137,120]
[391971140,1761037762800,2000.0,0.00030137,120]
[391971141,1761037763136,2000.0,0.00030137,120]
[391971142,1761037763462,3415.52,0.00034433,30]
[391971143,1761037763514,2000.0,0.00030137,120]
[391971148,1761037831992,-525.888,0.00014171,2]
[391971149,1761037832133,-2445.132,0.00014171,2]
[391971150,1761037832143,-1557.860484,0.00014768,2]
[391971151,1761037832153,-195.0,0.00014843,2]
[391971152,1761037832165,-2917.02005,0.0001485,2]
[391971153,1761037832175,-315.76558928,0.00014861,2]
[391971154,1761037832184,-1200.0,0.00014879,2]
[391971155,1761037832350,-500.0,0.0001488,2]
[391971156,1761037832360,-200.0,0.0001488,2]
[391971157,1761037832369,-154.8031718,0.000149,2]
[391971158,1761037832378,-158.04378671,0.000149,2]
[391971159,1761037832387,-209.0,0.00014904,2]
[391971160,1761037832397,-300.0,0.00014904,2]
[391971162,1761037832408,-300.0,0.00014905,2]
[391971164,1761037832417,-195.0,0.00014906,2]
[391971166,1761037832430,-1200.0,0.00014971,2]
[391971168,1761037832439,-501.13319365,0.00014973,2]
[391971170,1761037832449,-174.84706274,0.00014973,2]
[391971172,1761037832458,-500.0,0.00014973,2]
[391971174,1761037832467,-500.0,0.00014973,2]
[391971176,1761037832477,-500.0,0.00014973,2]
[391971178,1761037832486,-500.0,0.00014973,2]
[391971180,1761037832495,-501.19732905,0.00014973,2]
[391971182,1761037832504,-500.0,0.00014973,2]
[391971185,1761037832514,-500.0,0.00014973,2]
[391971188,1761037832523,-374.94118381,0.00014973,2]
[391971190,1761037832532,-214.0380613,0.00014973,2]
[391971193,1761037832541,-500.0,0.00014973,2]
[391971196,1761037832551,-570.98443138,0.00014973,2]
[391971198,1761037832560,-500.0,0.00014973,2]
[391971201,1761037832571,-286.27631451,0.00014973,2]
[391971204,1761037832582,-503.6743994,0.00014973,2]
[391971206,1761037832592,-500.4575524,0.00014973,2]
[391971209,1761037832601,-500.0,0.00014973,2]
[391971212,1761037832611,-500.0,0.00014973,2]
[391971216,1761037832622,-500.0,0.00014973,2]
[391971219,1761037832634,-1726.1350867,0.00014986,2]
[391971221,1761037832646,-151.0,0.00014991,2]
[391971224,1761037832655,-151.0,0.00014991,2]
[391971227,1761037832666,-151.0,0.00014991,2]
[391971230,1761037832675,-151.0,0.00014991,2]
[391971233,1761037832684,-151.0,0.00014991,2]
[391971235,1761037832694,-151.0,0.00014991,2]
[391971238,1761037832703,-151.0,0.00014991,2]
[391971240,1761037832712,-151.0,0.00014991,2]
[391971243,1761037832722,-151.0,0.00014991,2]
[391971245,1761037832731,-151.0,0.00014991,2]
[391971249,1761037832742,-151.0,0.00014991,2]
[391971251,1761037832751,-151.0,0.00014991,2]
[391971254,1761037832761,-286.56340228,0.00014991,2]
[391971256,1761037832771,-151.0,0.00014991,2]
[391971258,1761037832780,-151.0,0.00014991,2]
[391971259,1761037832790,-151.0,0.00014991,2]
[391971260,1761037832800,-151.0,0.00014991,2]
[391971261,1761037832809,-151.0,0.00014991,2]
[391971262,1761037832819,-151.0,0.00014991,2]
[391971263,1761037832831,-151.0,0.00014991,2]
[391971264,1761037832841,-151.0,0.00014991,2]
[391971265,1761037832850,-151.0,0.00014991,2]
[391971266,1761037832859,-151.0,0.00014991,2]
[391971267,1761037832869,-151.0,0.00014991,2]
[391971268,1761037832879,-151.0,0.00014991,2]
[391971269,1761037832889,-151.0,0.00014991,2]
[391971270,1761037832899,-151.0,0.00014991,2]
[391971271,1761037832910,-151.0,0.00014991,2]
[391971272,1761037832920,-151.0,0.00014991,2]
[391971273,1761037832929,-961.61,0.00014991,2]
[391971274,1761037832939,-500.0,0.00014999,2]
[391971275,1761037832948,-500.0,0.00014999,2]
[391971276,1761037832958,-500.4,0.00014999,2]
[391971277,1761037832967,-500.0,0.00014999,2]
[391971278,1761037832976,-426.99259049,0.00014999,2]
[391971279,1761037832986,-500.0,0.00014999,2]
[391971280,1761037832997,-454.38708962,0.00014999,2]
[391971281,1761037833007,-500.0,0.00014999,2]
[391971282,1761037833017,-273.40328238,0.00014999,2]
[391971283,1761037833027,-500.0,0.00014999,2]
[391971284,1761037833037,-609.67932778,0.00014999,2]
[391971285,1761037833047,-500.0,0.00014999,2]
[391971286,1761037833057,-316.31307033,0.00014999,2]
[391971287,1761037833067,-500.0,0.00014999,2]
[391971288,1761037833076,-500.0,0.00014999,2]
[391971289,1761037833086,-500.0,0.00014999,2]
[391971290,1761037833096,-500.0,0.00014999,2]
[391971291,1761037833105,-500.0,0.00014999,2]
[391971292,1761037833115,-500.0,0.00014999,2]
[391971293,1761037833126,-500.0,0.00014999,2]
[391971294,1761037833136,-500.0,0.00014999,2]
[391971295,1761037833148,-500.0,0.00014999,2]
[391971296,1761037833158,-470.53138818,0.00014999,2]
[391971297,1761037833168,-500.0,0.00014999,2]
[391971298,1761037833178,-500.0,0.00014999,2]
[391971299,1761037833188,-500.0,0.00014999,2]
[391971300,1761037833198,-500.0,0.00014999,2]
[391971301,1761037833216,-500.0,0.00014999,2]
[391971302,1761037833229,-500.0,0.00014999,2]
[391971303,1761037833240,-500.0,0.00014999,2]
[391971304,1761037833250,-628.24552418,0.00014999,2]
[391971305,1761037833259,-150.0,0.00014999,2]
[391971306,1761037833269,-500.0,0.00014999,2]
[391971307,1761037833280,-150.0,0.00014999,2]
[391971308,1761037833290,-150.0,0.00014999,2]
[391971309,1761037833301,-500.0,0.00014999,2]
[391971310,1761037833311,-150.0,0.00014999,2]
[391971311,1761037833323,-150.0,0.00014999,2]
[391971312,1761037833333,-150.0,0.00014999,2]
[391971313,1761037833345,-150.0,0.00014999,2]
[391971314,1761037833354,-500.0,0.00014999,2]
[391971315,1761037833363,-150.0,0.00014999,2]
[391971316,1761037833373,-150.0,0.00014999,2]
[391971317,1761037833383,-150.0,0.00014999,2]
[391971318,1761037833394,-150.0,0.00014999,2]
[391971319,1761037833405,-500.0,0.00014999,2]
[391971320,1761037833415,-253.45165966,0.00015,2]
[391971321,1761037833424,-1714.0,0.00015,2]